Cogmind - Beta 11 @@@ ROGUE MODE // 2022.04.12 @ 14:42:51 Player: Red Box Result: Destroyed by as-90780 with Assembled Rifle Performance ------------- Evolutions (0) 0 Regions Visited (2) 400 Robots Destroyed (16) 80 Value Destroyed (441) 441 Prototype IDs (0) 0 Alien Tech Used (0) 0 Bonus (0) 0 TOTAL SCORE: 921 Bonus ------- None Cogmind --------- Core Integrity 0/250 Matter 280/300 Energy 250/250 System Corruption 2% Temperature Cool (0) Movement Rolling (110) Ox2 Location -10/Mines Parts ------- > --- POWER (1) -------- Ion Engine > --- PROPULSION (2) --- Wheel Wheel > --- UTILITY (2) ------ High-capacity Storage Unit Targeting Computer > --- WEAPON (2) ------- Mini Grenade Launcher Maul > --- INVENTORY (20) --- Wheel Wheel Compact Wheel Compact Wheel Combat Airjet Combat Airjet Improved Heat Sink Improved Heat Sink Large Storage Unit High-capacity Matter Pod (200) Improved Terrain Scanner Utility Shielding Weapon Shielding Light Armor Plating Trap Extractor (0/4) Particle Gun Particle Gun Particle Gun Particle Gun Assault Rifle Peak State ------------ > --- POWER ------------ Ion Engine > --- PROPULSION ------- Wheel Wheel > --- UTILITY ---------- High-capacity Storage Unit Targeting Computer > --- WEAPON ----------- Assault Rifle Maul > --- INVENTORY -------- Light Treads Light Treads Compact Wheel Compact Wheel Combat Airjet Combat Airjet Improved Heat Sink Improved Heat Sink Large Storage Unit High-capacity Matter Pod Improved Terrain Scanner Utility Shielding Weapon Shielding Light Armor Plating Trap Extractor Particle Gun Particle Gun Particle Gun Particle Gun Mini Grenade Launcher [Rating: 12] Favorites ----------- Power Ion Engine Engine Ion Engine Propulsion Wheel Treads Light Treads Leg Aluminum Leg Wheel Wheel Utility Targeting Computer Device Heat Sink Storage Large Storage Unit Processor Targeting Computer Weapon Assault Rifle Energy Gun Medium Laser Ballistic Gun Assault Rifle Launcher Mini Grenade Launcher Impact Weapon Maul Build | -11 -10 -10 ------- Run | Scr Mat Min Slots Evolved . | . . . Power . | . . . Propulsion . | . . . Utility . | . . . Weapon . | . . . Parts Attached 32 | 7 17 8 Power 2 | 1 1 . Engine 2 | 1 1 . Core . | . . . Reactor . | . . . Propulsion 11 | 2 5 4 Treads 1 | . 1 . Leg 4 | 2 . 2 Wheel 6 | . 4 2 Hover . | . . . Flight . | . . . Utility 9 | 2 7 . Device 3 | 1 2 . Storage 5 | 1 4 . Processor 1 | . 1 . Hackware . | . . . Protection . | . . . Artifact . | . . . Weapon 10 | 2 4 4 Energy Gun 2 | . 2 . Energy Cannon . | . . . Ballistic Gun 5 | 2 2 1 Ballistic Cannon . | . . . Launcher 2 | . . 2 Special Weapon . | . . . Impact Weapon 1 | . . 1 Slashing Weapon . | . . . Piercing Weapon . | . . . Special Melee Weapon . | . . . Unidentified Prototypes . | . . . Parts Lost 8 | . 4 4 Power 1 | . 1 . Propulsion 4 | . 2 2 Utility . | . . . Weapon 3 | . 1 2 Highest Loss Streak 4 | . 2 4 To Critical Strikes . | . . . Average Slot Usage (%) 97 | . 97 97 Engine 13 | . 13 14 Treads 3 | . 3 2 Leg 7 | . 2 16 Wheel 15 | . 19 7 Device 4 | . 6 . Storage 14 | . 14 14 Processor 9 | . 7 14 Energy Gun 6 | . 10 . Ballistic Gun 19 | . 17 23 Impact Weapon 1 | . . 3 Naked Turns . | . . . Heaviest Build 50 | 13 49 50 Greatest Support 20 | 20 20 20 Greatest Overweight (x) 4 | 3 4 4 Average Overweight (x) 1 | . 1 2 Largest Inventory Capacity 20 | 8 20 20 Average Capacity 15 | 7 13 20 Most Carried 20 | 7 15 20 Average Carried 14 | 4 12 18 Final Capacity 20 | 8 20 20 Final Carried 20 | 7 15 20 Class Distribution -------------------- 96% | Mutant 3% | Scavenger-Mutant Dominant Class ---------------- Mutant | -10/Materials Mutant | -10/Mines Resources | -11 -10 -10 ----------- Run | Scr Mat Min Matter Collected 896 | 276 342 278 Remotely . | . . . Salvage Created 681 | 27 473 181 Parts 34 | 3 22 9 Haulers Intercepted 2 | . 2 . Recyclers Shooed 1 | . . 1 Parts Field Recycled . | . . . Retrieved Matter . | . . . Parts Self-Destructed . | . . . Prevented . | . . . Kills | -11 -10 -10 ------- Run | Scr Mat Min Combat Hostiles Destroyed 19 | . 8 11 Melee 1 | . . 1 Guns 14 | . 8 6 AOE 3 | . . 3 Classes Destroyed 6 | 1 3 2 Tunneler 1 | 1 . . Hauler 2 | . 2 . Recycler 1 | . . 1 Watcher 2 | . 2 . Grunt 10 | . 8 2 Assembled 9 | . . 9 Best Kill Streak 7 | 1 4 7 Combat Bots Only 7 | . 4 7 Max Kills in Single Turn 2 | 1 1 2 Gunslinging . | . . . Exploded 2 | . . 2 Melee 1 | . . 1 Uniques/NPCs Destroyed . | . . . Combat | -11 -10 -10 -------- Run | Scr Mat Min Damage Taken 1051 | . 368 683 Core 250 | . 32 218 Absorbed by Shields . | . . . Core Remaining (%) 100 | 100 . . Volleys Fired 60 | 1 35 24 Largest 2 | 2 2 2 Hottest 100 | 40 100 40 Shots Fired 110 | 2 70 38 Gun 107 | 2 70 35 Cannon . | . . . Launcher 3 | . . 3 Special . | . . . Kinetic 60 | 2 23 35 Thermal 47 | . 47 . Explosive 3 | . . 3 Electromagnetic . | . . . Robot Hit Streak 9 | 1 9 6 Robot Miss Streak 5 | . 4 5 Penetration Max . | . . . Secondary Targets 3 | . 1 2 Max Gunslinging Chain 1 | . 1 1 Shots Hit Robots 66 | 1 40 25 Core Hits 45 | 1 25 19 Critical Kills 2 | . . 2 Critical Parts Destroyed 1 | . . 1 Critical Strikes 6 | . 3 3 Burn 3 | . 3 . Destroy 2 | . . 2 Smash 1 | . . 1 Melee Attacks 4 | . . 4 Impact 4 | . . 4 Slashing . | . . . Piercing . | . . . Sneak Attacks . | . . . Combat Hostiles . | . . . Follow-up Attacks . | . . . Damage Inflicted 1300 | 14 531 755 Guns 822 | 14 531 277 Cannons . | . . . Explosions 335 | . . 335 Melee 143 | . . 143 Ramming . | . . . Kinetic 394 | 14 103 277 Thermal 428 | . 428 . Explosive 335 | . . 335 Electromagnetic . | . . . Impact 143 | . . 143 Slashing . | . . . Piercing . | . . . Highest Corruption 2 | . 2 2 Average Corruption 2 | . 2 2 Corruption Purged . | . . . Corruption Blocked . | . . . Effects 11 | . 1 10 Message Errors 2 | . . 2 Matter Fused 1 | . . 1 Heat Flow Errors 2 | . 1 1 Energy Discharges 2 | . . 2 Data Loss (minor) 2 | . . 2 Data Loss (major) 1 | . . 1 Weapon Failures 1 | . . 1 Overload Shots . | . . . Overflow Damage 104 | . . 104 Projectiles . | . . . Explosions 28 | . . 28 Melee 76 | . . 76 Knockbacks . | . . . Impact . | . . . Kinetic . | . . . Secondary . | . . . Self-Inflicted Damage 40 | . . 40 Shots 1 | . . 1 Rammed . | . . . Targets Rammed . | . . . Kicked . | . . . Crushed . | . . . Highest Temperature 243 | . 114 243 Average Temperature 44 | . 35 74 Received Heat Transfer 345 | . 183 162 Siege Activations . | . . . Robots Corrupted . | . . . Combat Hostiles . | . . . Parts Fried . | . . . Impact Corruptions 3 | . . 3 Robots Melted . | . . . Combat Hostiles . | . . . Parts Melted 6 | . 6 . Heat Transferred 1480 | . 1480 . Parts Sabotaged . | . . . Parts Stolen . | . . . Parts Stripped . | . . . Power Chain Reactions . | . . . Missiles Intercepted . | . . . Alert | -11 -10 -10 ------- Run | Scr Mat Min Peak Influence 223 | 5 223 86 Initial 15 | . 3 15 Average 66 | 2 80 48 Maximum Alert Level 1 | . 1 . Low Security (%) 99 | 100 99 100 Level 1 . | . . . Level 2 . | . . . Level 3 . | . . . Level 4 . | . . . Level 5 . | . . . High Security . | . . . Max Security . | . . . Squads Dispatched 2 | . 2 . Investigation . | . . . Extermination . | . . . Reinforcement 2 | . 2 . Assault . | . . . Garrison . | . . . Intercept . | . . . Searches Triggered . | . . . Construction Impeded . | . . . Haulers Reinforced . | . . . Active Scanning Responses . | . . . Cargo Convoy Interrupts . | . . . Stealth | -11 -10 -10 --------- Run | Scr Mat Min Distress Signals 1 | . 1 . Communications Jammed . | . . . Distress Signals . | . . . Times Spotted 49 | . 24 25 Peak Tracking Total 14 | . 4 14 Tactical Retreats 5 | . 3 2 Traps | -11 -10 -10 ------- Run | Scr Mat Min Traps Triggered 3 | . 3 . Indirectly . | . . . Trap Hack Attempts . | . . . Triggered . | . . . Disarmed . | . . . Reprogrammed 9 | . 9 . Reused 2 | . 2 . Traps Extracted . | . . . Installed . | . . . Triggered 2 | . 2 . Machines | -11 -10 -10 ---------- Run | Scr Mat Min Machines Disabled . | . . . Max in Single Turn . | . . . Machines Sabotaged . | . . . Garrisons Compromised . | . . . Overloaded Fab Kills . | . . . Hacking | -11 -10 -10 --------- Run | Scr Mat Min Machines Accessed 6 | . 6 . Terminals 4 | . 4 . Fabricators . | . . . Repair Stations . | . . . Recycling Units 2 | . 2 . Scanalyzers . | . . . Garrison Access . | . . . Total Hacks 21 | . 21 . Successful 12 | . 12 . Failed 9 | . 9 . Catastrophic . | . . . Database Lockouts . | . . . Manual 13 | . 13 . Terminals 15 | . 15 . Fabricators . | . . . Repair Stations . | . . . Recycling Units 6 | . 6 . Scanalyzers . | . . . Garrison Access . | . . . Terminal Hacks 5 | . 5 . Robot Analysis 1 | . 1 . Locate Traps 2 | . 2 . Reprogram Traps 2 | . 2 . Fabricator Hacks . | . . . Repair Station Hacks . | . . . Recycling Unit Hacks 2 | . 2 . Retrieve Components 2 | . 2 . Scanalyzer . | . . . Garrison Access Hacks . | . . . Unauthorized Hacks 5 | . 5 . Terminals 3 | . 3 . Track 1 | . 1 . Botnet 2 | . 2 . Fabricators . | . . . Repair Stations . | . . . Recycling Units 2 | . 2 . Reject 2 | . 2 . Scanalyzers . | . . . Garrison Access . | . . . Data Cores Recovered . | . . . Used . | . . . Hacking Detections 5 | . 5 . Full Trace Events . | . . . Feedback Events . | . . . Feedback Blocked . | . . . Robot Schematics Acquired . | . . . Robots Built . | . . . Authchips . | . . . Time . | . . . Total Robot Build Rating . | . . . Part Schematics Acquired . | . . . Parts Built . | . . . Authchips . | . . . Time . | . . . Total Part Build Rating . | . . . Parts Repaired . | . . . Time . | . . . Parts Recycled . | . . . Recycled Matter . | . . . Retrieved Matter . | . . . Retrieved Components 9 | . 9 . Parts Scanalyzed . | . . . Part Schematics Acquired . | . . . Parts Damaged . | . . . Bothacking | -11 -10 -10 ------------ Run | Scr Mat Min Used RIF Installer . | . . . Robots Hacked . | . . . Non-combat . | . . . Combat . | . . . Robot Hacks Applied . | . . . Relay Couplers Released . | . . . Fabnet Peak Effective % . | . . . Robots Rewired . | . . . Allies Hacked . | . . . Hacks Repelled . | . . . Allies | -11 -10 -10 -------- Run | Scr Mat Min Total Allies . | . . . Largest Group . | . . . Highest-Rated Group . | . . . Highest-Rated Ally . | . . . Total Orders . | . . . Ally Attacks . | . . . Total Damage . | . . . Kills . | . . . Allies Corrupted . | . . . Allies Melted . | . . . Intel | -11 -10 -10 ------- Run | Scr Mat Min Robot Analysis Total 1 | . 1 . Derelict Logs Recovered 1 | . . 1 Drone Launches . | . . . Drone Recoveries . | . . . Exploration | -11 -10 -10 ------------- Run | Scr Mat Min Turns Passed 1642 | 83 1039 520 Spaces Moved 1083 | 52 814 217 Core 9 | 9 . . Treads . | . . . Legs 205 | 43 57 105 Wheels 869 | . 757 112 Hover . | . . . Flight . | . . . Fastest Speed 50 | 50 80 110 Average Speed 121 | 121 102 191 Slowest Speed 400 | 200 140 400 Overloaded Moves . | . . . Propulsion Burnouts . | . . . Robots Hopped . | . . . Cave-ins Triggered . | . . . Exploration Rate (%) 45 | 4 95 37 Regions Visited 2 Branch Regions 1 Pre-discovered Areas 1 | . . 1 Known Exits Taken . | . . . Unknown Exits Taken 2 | 1 1 . Scrap Searched . | . . . Spaces Dug . | . . . Terrain Destroyed 28 | . . 28 Melee . | . . . Projectile . | . . . AOE 28 | . . 28 Terrain Rammed . | . . . Walls Destroyed . | . . . Machines Disabled . | . . . Actions | -11 -10 -10 --------- Run | Scr Mat Min Total 1291 | 66 953 272 Wait 53 | . 46 7 Move 1081 | 51 813 217 Hop . | . . . Pick Up 42 | 7 25 10 Fast Attach 9 | 7 1 1 Attach 7 | . 4 3 Detach . | . . . Swap 16 | . 12 4 Drop 19 | . 17 2 Fire 60 | 1 35 24 Melee 4 | . . 4 Ram . | . . . Kick . | . . . Crush . | . . . Escape Stasis . | . . . Rewire . | . . . Trap . | . . . Miscellaneous . | . . . Route ------- -11/Scrapyard -10/Materials (discovered 4 exits: [*Mat x3] / [*Min]) -10/Mines (discovered 1 exit: [*Mat]) History --------- Turn | Location | Event 21 | -11/Scrapyard | Discovered new exit (range 15) 84 | -11/Scrapyard | Entered Materials 357 | -10/Materials | Discovered new exit (range 8) 545 | -10/Materials | Discovered new exit (range 9) 630 | -10/Materials | Build established: Mutant 698 | -10/Materials | Discovered new exit (range 16) 1035 | -10/Materials | Discovered new exit (range 3) 1123 | -10/Materials | Entered Mines 1124 | -10/Mines | Learned location of Storage (-7) 1162 | -10/Mines | Met a Derelict bent on vengeance 1186 | -10/Mines | Discovered new exit (range 3) 1437 | -10/Mines | Assembled infested the area 1438 | -10/Mines | Learned Materials stockpile data 1442 | -10/Mines | Assisted by a Guerilla fighting off Assembled 1512 | -10/Mines | Core integrity fell below 50% 1523 | -10/Mines | Core integrity fell below 20% 1549 | -10/Mines | Lost 4 parts (2n2w) 1563 | -10/Mines | Destroyed 7 combat bots 1643 | -10/Mines | Destroyed by as-90780 with Assembled Rifle Last Messages --------------- 01557_ Acquired 12 matter. 01559_ U-05 Engineer lays Concrete. 01560_ Acquired Wheel. 01561_ U-05 Engineer lays Concrete. 01561_ Acquired 12 matter. 01562_ System corrupted: Component data lost. 01562_ Acquired 61 matter. 01562_ U-05 Engineer lays Concrete. 01565_ Acquired Mni. Grenade Launcher. 01566_ U-05 Engineer lays Concrete. 01567_ R-06 Scavenger collects Lgt. Ion Engine. 01568_ U-05 Engineer lays Concrete. 01572_ R-06 Scavenger collects Aluminum Leg. 01583_ U-05 Engineer lays Concrete. 01586_ Dropped Lgt. Treads. 01587_ U-05 Engineer lays Concrete. 01588_ Acquired Wheel. 01601_ System corrupted: Heat flow error (+263). 01617_ System corrupted: Energy discharge (-67). 01642_ U-05 Engineer builds a Wall. Map ----- +----------------------------------------------------+ | ???????????????????????????????????? | | ???????????????????????????????????? | | ???????????????????????????????????? | | ???????????????????????????????????? | | ???????????????????????????????????? | | ???????????????????????????????????? | | ???????????????????????????????????? | | ???????????????????????????????????? | | ???????????????????????????????????? | | ???????????????????????????????????? | | ??????????????????????###??????????? | | ??????????????????????# ##?????????? | | ??????????????????????# ##????????? | | ?????????????????????## ##???????? | | ??????????############ #???????? | | ?????????## ## ## #???????? | | ????????## #????????? | | ????????# ##????????? | | ????????# #?????????? | | ????????# " ## #?????????? | | ????????## ### #?????????? | | ?????????## ####?# #####?????? | | ??????????### ##????# ##????? | | ????????????#####?????# #????? | | ??????????????????????## ##????? | | ??????????????????????# @ ##?????? | | ??????????????????????# #??????? | | ??????????????????????# ##?????? | | ?????????????????????### ##????? | | ?????????????????????# * ##???? | | ?????????????????????# %! #???? | | ??????????#?????????## == #???? | | ?????????## ???????# * %% #???? | | ???? ## * #?????# ## ##???? | | ??? %* =##### % #####????? | | ??? ! *%% a #####????? | | ??? ! # ####??? | | ???# ### # # #??? | | ???# #####?????#### #u #??? | | ???????????????????### #%% ##??? | | ??????????????????## ! # ###???? | | ??????????????????# ##????? | | ?????????????????## %" #????? | | ????????????????## # ###??? | | ????????????????# ## #??? | | ????????????##### #### #??? | | ???????? ##?# #??? | | ???????? #?# #??? | | ??????????######## ## #??? | | ?????????????????# ## #??? | +----------------------------------------------------+ Best States ------------- Heat Dissipation 35 Energy Generation 10 Energy Capacity 250 Matter Stores 300 Matter Capacity 300 Sight Range 16 Terrain Scan Range 16 Terrain Scan Density 10 Evasion (%) 55 Targeting Accuracy 5 Recoil Reduction 1 Item Schematics ----------------- None Robot Schematics ------------------ None Fabricated ------------ Nothing Alien Tech Used ----------------- None Achievements -------------- None Challenges ------------ None Game ------ Seed UtilityMeleeWand Manual? 0 Play Time 00:18:24 Cumulative 277.1 hours Start 2022.04.11 @ 20:44:31 End 2022.04.12 @ 14:42:51 Sessions 3 Manual Loads 0 Difficulty Rogue Special Mode None Game No. 235 Rogue 235 Adventurer 0 Explorer 0 Win Type - Total 0 Types 0/0/0/0/0/0/0/0/0 Lore% 52 Gallery% 58 Achievement% 42 Wizard Run 0 Options --------- ASCII 0 Keyboard 0 Movement Mouse Keybinds 0 Fullscreen 1 Font 16/SmallcapsGlow Map View 75x55 Tactical HUD 1 Map Filters NONE Filters NONE Steam 1 RUN: d52f5325-f0c3-4085-a24f-19898927bcc6